fUSD/lending_fUSD_20260625
["ID","MTS","AMOUNT","RATE_DAILY","PERIOD"]
[426440767,1782394475000,-542.6,0.0003732,120]
[426440764,1782394475000,-542.6,0.0003732,120]
[426440757,1782394475000,-364.0,0.0003732,120]
[426440761,1782394475000,-542.6,0.0003732,120]
[426440760,1782394475000,-542.6,0.0003732,120]
[426440759,1782394475000,-542.6,0.0003732,120]
[426440758,1782394475000,-542.6,0.0003732,120]
[426440756,1782394475000,-422.999999,0.0003732,120]
[426440755,1782394475000,-339.74255256,0.0003732,120]
[426440753,1782394475000,-211.7171711,0.0003732,120]
[426440754,1782394475000,-246.54,0.0003732,120]
[426440762,1782394475000,-542.6,0.0003732,120]
[426440771,1782394475000,-542.6,0.0003732,120]
[426440773,1782394475000,-542.6,0.0003732,120]
[426440777,1782394475000,-542.6,0.0003732,120]
[426440774,1782394475000,-542.6,0.0003732,120]
[426440794,1782394475000,-800.0,0.0003732,120]
[426440793,1782394475000,-800.0,0.0003732,120]
[426440792,1782394475000,-230.06189226,0.0003732,120]
[426440788,1782394475000,-800.0,0.0003732,120]
[426440790,1782394475000,-718.18892693,0.0003732,120]
[426440789,1782394475000,-800.0,0.0003732,120]
[426440787,1782394475000,-774.92483983,0.0003732,120]
[426440786,1782394475000,-233.39260916,0.0003732,120]
[426440791,1782394475000,-194.65321495,0.0003732,120]
[426440783,1782394475000,-542.6,0.0003732,120]
[426440784,1782394475000,-542.65364255,0.0003732,120]
[426440782,1782394475000,-542.6,0.0003732,120]
[426440781,1782394475000,-542.6,0.0003732,120]
[426440779,1782394475000,-542.6,0.0003732,120]
[426440780,1782394475000,-542.6,0.0003732,120]
[426440778,1782394475000,-542.6,0.0003732,120]
[426440775,1782394475000,-508.29115403,0.0003732,120]
[426440776,1782394475000,-542.6,0.0003732,120]
[426440785,1782394475000,-158.5443793,0.0003732,120]
[426440806,1782394476000,-473.65067225,0.0003732,120]
[426440807,1782394476000,-507.36510076,0.0003732,120]
[426440811,1782394476000,-598.12568602,0.0003732,120]
[426440810,1782394476000,-230.0,0.0003732,120]
[426440808,1782394476000,-302.55901813,0.0003732,120]
[426440804,1782394476000,-800.0,0.0003732,120]
[426440805,1782394476000,-800.0,0.0003732,120]
[426440803,1782394476000,-800.0,0.0003732,120]
[426440797,1782394476000,-800.0,0.0003732,120]
[426440802,1782394476000,-800.0,0.0003732,120]
[426440799,1782394476000,-800.0,0.0003732,120]
[426440800,1782394476000,-800.0,0.0003732,120]
[426440798,1782394476000,-800.0,0.0003732,120]
[426440795,1782394476000,-800.0,0.0003732,120]
[426440796,1782394476000,-800.0,0.0003732,120]
[426440809,1782394476000,-231.60712503,0.0003732,120]
[426440801,1782394476000,-800.0,0.0003732,120]
[426440812,1782394476000,-332.96759973,0.0003732,120]
[426440813,1782394476000,-217.57882585,0.0003732,120]
[426440815,1782394476000,-228.62424133,0.0003732,120]
[426440831,1782394476000,-217.57657501,0.0003732,120]
[426440829,1782394476000,-476.91466494,0.0003732,120]
[426440830,1782394476000,-161.74240658,0.0003732,120]
[426440828,1782394476000,-576.68742842,0.0003732,120]
[426440827,1782394476000,-500.0,0.0003732,120]
[426440825,1782394476000,-500.0,0.0003732,120]
[426440824,1782394476000,-245.97891242,0.0003732,120]
[426440823,1782394476000,-175.8865838,0.0003732,120]
[426440826,1782394476000,-500.0,0.0003732,120]
[426440821,1782394476000,-500.0,0.0003732,120]
[426440820,1782394476000,-174.12877994,0.0003732,120]
[426440817,1782394476000,-203.71273318,0.0003732,120]
[426440819,1782394476000,-500.0,0.0003732,120]
[426440816,1782394476000,-172.44934159,0.0003732,120]
[426440818,1782394476000,-585.23362165,0.0003732,120]
[426440814,1782394476000,-500.0,0.0003732,120]
[426440822,1782394476000,-167.60542102,0.0003732,120]
[426440842,1782394477000,-500.0,0.0003732,120]
[426440849,1782394477000,-500.0,0.0003732,120]
[426440845,1782394477000,-500.0,0.0003732,120]
[426440847,1782394477000,-500.0,0.0003732,120]
[426440846,1782394477000,-500.0,0.0003732,120]
[426440844,1782394477000,-175.08771185,0.0003732,120]
[426440843,1782394477000,-500.0,0.0003732,120]
[426440840,1782394477000,-150.20864874,0.0003732,120]
[426440832,1782394477000,-264.31979981,0.0003732,120]
[426440839,1782394477000,-304.39672442,0.0003732,120]
[426440838,1782394477000,-500.0,0.0003732,120]
[426440837,1782394477000,-500.0,0.0003732,120]
[426440836,1782394477000,-310.78667704,0.0003732,120]
[426440835,1782394477000,-239.11441216,0.0003732,120]
[426440833,1782394477000,-221.37350914,0.0003732,120]
[426440834,1782394477000,-163.79362263,0.0003732,120]
[426440848,1782394477000,-500.0,0.0003732,120]
[426440841,1782394477000,-197.66780958,0.0003732,120]
[426440850,1782394477000,-500.0,0.0003732,120]
[426440854,1782394477000,-333.30952619,0.0003732,120]
[426440870,1782394477000,-316.67920171,0.0003732,120]
[426440868,1782394477000,-164.94832739,0.0003732,120]
[426440869,1782394477000,-373.83629058,0.0003732,120]
[426440867,1782394477000,-246.65815456,0.0003732,120]
[426440866,1782394477000,-500.0,0.0003732,120]
[426440864,1782394477000,-427.34848296,0.0003732,120]
[426440865,1782394477000,-603.8379,0.0003732,120]
[426440862,1782394477000,-500.0,0.0003732,120]
[426440863,1782394477000,-500.0,0.0003732,120]
[426440851,1782394477000,-500.0,0.0003732,120]
[426440860,1782394477000,-172.59672985,0.0003732,120]
[426440859,1782394477000,-454.98404876,0.0003732,120]
[426440858,1782394477000,-435.10292124,0.0003732,120]
[426440856,1782394477000,-299.00046121,0.0003732,120]
[426440857,1782394477000,-500.0,0.0003732,120]
[426440855,1782394477000,-321.51601525,0.0003732,120]
[426440852,1782394477000,-500.0,0.0003732,120]
[426440853,1782394477000,-299.10880914,0.0003732,120]
[426440861,1782394477000,-500.0,0.0003732,120]
[426440881,1782394478000,-258.40292633,0.0003732,120]
[426440882,1782394478000,-340.41133376,0.0003732,120]
[426440886,1782394478000,-201.38629937,0.0003732,120]
[426440884,1782394478000,-175.21597832,0.0003732,120]
[426440885,1782394478000,-257.33552899,0.0003732,120]
[426440880,1782394478000,-221.9259638,0.0003732,120]
[426440883,1782394478000,-182.18485047,0.0003732,120]
[426440878,1782394478000,-164.44302543,0.0003732,120]
[426440876,1782394478000,-415.76441915,0.0003732,120]
[426440877,1782394478000,-203.7380334,0.0003732,120]
[426440875,1782394478000,-500.0,0.0003732,120]
[426440873,1782394478000,-283.03917845,0.0003732,120]
[426440874,1782394478000,-500.0,0.0003732,120]
[426440872,1782394478000,-217.04855841,0.0003732,120]
[426440871,1782394478000,-500.0,0.0003732,120]
[426440887,1782394478000,-175.5124664,0.0003732,120]
[426440879,1782394478000,-285.06336203,0.0003732,120]
[426440889,1782394478000,-500.0,0.0003732,120]
[426440894,1782394478000,-1214.22,0.0003732,120]
[426440890,1782394478000,-262.23506068,0.0003732,120]
[426440906,1782394478000,-1214.22,0.0003732,120]
[426440907,1782394478000,-1214.22,0.0003732,120]
[426440905,1782394478000,-1214.22,0.0003732,120]
[426440904,1782394478000,-1214.22,0.0003732,120]
[426440901,1782394478000,-1214.22,0.0003732,120]
[426440888,1782394478000,-1645.56272105,0.0003732,120]
[426440902,1782394478000,-1214.22,0.0003732,120]
[426440900,1782394478000,-1214.22,0.0003732,120]
[426440903,1782394478000,-225.78258039,0.0003732,120]
[426440897,1782394478000,-1214.22,0.0003732,120]
[426440898,1782394478000,-1214.22,0.0003732,120]
[426440896,1782394478000,-1214.22,0.0003732,120]
[426440895,1782394478000,-1214.22,0.0003732,120]
[426440893,1782394478000,-217.47504661,0.0003732,120]
[426440892,1782394478000,-150.43435155,0.0003732,120]
[426440891,1782394478000,-279.39145663,0.0003732,120]
[426440899,1782394478000,-1214.22,0.0003732,120]
[426440917,1782394479000,-1214.22,0.0003732,120]
[426440924,1782394479000,-503.58553031,0.0003732,120]
[426440923,1782394479000,-172.30391823,0.0003732,120]
[426440922,1782394479000,-503.74787623,0.0003732,120]
[426440920,1782394479000,-195.4,0.0003732,120]
[426440919,1782394479000,-495.07089753,0.0003732,120]
[426440918,1782394479000,-1214.25705704,0.0003732,120]
[426440926,1782394479000,-500.0,0.0003732,120]
[426440915,1782394479000,-1214.22,0.0003732,120]
[426440914,1782394479000,-1214.22,0.0003732,120]
[426440913,1782394479000,-1214.22,0.0003732,120]
[426440912,1782394479000,-1214.22,0.0003732,120]
[426440911,1782394479000,-1214.22,0.0003732,120]
[426440909,1782394479000,-1214.22,0.0003732,120]
[426440910,1782394479000,-1214.22,0.0003732,120]
[426440908,1782394479000,-1214.22,0.0003732,120]
[426440916,1782394479000,-1214.22,0.0003732,120]
[426440925,1782394479000,-500.0,0.0003732,120]
[426440921,1782394479000,-643.63506779,0.0003732,120]
[426440927,1782394479000,-500.0,0.0003732,120]
[426440945,1782394479000,-500.0,0.0003732,120]
[426440944,1782394479000,-500.0,0.0003732,120]
[426440943,1782394479000,-500.0,0.0003732,120]
[426440942,1782394479000,-500.0,0.0003732,120]
[426440941,1782394479000,-500.0,0.0003732,120]
[426440940,1782394479000,-500.0,0.0003732,120]
[426440939,1782394479000,-500.0,0.0003732,120]
[426440938,1782394479000,-500.0,0.0003732,120]
[426440928,1782394479000,-500.0,0.0003732,120]
[426440937,1782394479000,-500.0,0.0003732,120]
[426440935,1782394479000,-500.0,0.0003732,120]
[426440934,1782394479000,-155.00321255,0.0003732,120]
[426440933,1782394479000,-393.65634929,0.0003732,120]
[426440932,1782394479000,-500.0,0.0003732,120]
[426440931,1782394479000,-500.0,0.0003732,120]
[426440929,1782394479000,-552.73078957,0.0003732,120]
[426440930,1782394479000,-181.93464636,0.0003732,120]
[426440936,1782394479000,-279.67625624,0.0003732,120]
[426440957,1782394480000,-500.0,0.0003732,120]
[426440956,1782394480000,-500.0,0.0003732,120]
[426440961,1782394480000,-500.0,0.0003732,120]
[426440960,1782394480000,-500.0,0.0003732,120]
[426440958,1782394480000,-500.0,0.0003732,120]
[426440955,1782394480000,-500.0,0.0003732,120]
[426440959,1782394480000,-500.0,0.0003732,120]
[426440954,1782394480000,-512.49723099,0.0003732,120]
[426440950,1782394480000,-518.94733064,0.0003732,120]
[426440953,1782394480000,-500.0,0.0003732,120]
[426440951,1782394480000,-234.67352597,0.0003732,120]
[426440948,1782394480000,-500.0,0.0003732,120]
[426440949,1782394480000,-568.04881403,0.0003732,120]
[426440947,1782394480000,-307.1256432,0.0003732,120]
[426440946,1782394480000,-500.0,0.0003732,120]
[426440964,1782394480000,-500.0,0.0003732,120]
[426440952,1782394480000,-151.0,0.0003732,120]
[426440962,1782394480000,-500.0,0.0003732,120]
[426440966,1782394480000,-2572032.73,0.0003732,120]
[426440965,1782394480000,-502.91006363,0.0003732,120]
[426440981,1782394480000,-634.2661618,0.0003732,120]
[426440982,1782394480000,-774.00924557,0.0003732,120]
[426440963,1782394480000,-385.60995089,0.0003732,120]
[426440979,1782394480000,-413.86601,0.0003732,120]
[426440977,1782394480000,-228.88443541,0.0003732,120]
[426440978,1782394480000,-739.6,0.0003732,120]
[426440976,1782394480000,-250.158481,0.0003732,120]
[426440975,1782394480000,-197.0394,0.0003732,120]
[426440980,1782394480000,-276.95,0.0003732,120]
[426440974,1782394480000,-181.24355342,0.0003732,120]
[426440972,1782394480000,-500.0,0.0003732,120]
[426440971,1782394480000,-500.0,0.0003732,120]
[426440969,1782394480000,-500.0,0.0003732,120]
[426440970,1782394480000,-500.0,0.0003732,120]
[426440967,1782394480000,-163.30598373,0.0003732,120]
[426440968,1782394480000,-500.0,0.0003732,120]
[426440973,1782394480000,-501.87046222,0.0003732,120]
[426440995,1782394481000,-500.0,0.0003732,120]
[426440994,1782394481000,-500.0,0.0003732,120]
[426440993,1782394481000,-500.0,0.0003732,120]
[426440989,1782394481000,-500.0,0.0003732,120]
[426440991,1782394481000,-500.0,0.0003732,120]
[426440986,1782394481000,-176.0963236,0.0003732,120]
[426440988,1782394481000,-500.0,0.0003732,120]
[426440992,1782394481000,-500.0,0.0003732,120]
[426440985,1782394481000,-188.02061314,0.0003732,120]
[426440984,1782394481000,-156.36892236,0.0003732,120]
[426440983,1782394481000,-160.9422502,0.0003732,120]
[426440990,1782394481000,-500.0,0.0003732,120]
[426440997,1782394481000,-591.08234902,0.0003732,120]
[426440987,1782394481000,-211.08952447,0.0003732,120]
[426440999,1782394481000,-500.0,0.0003732,120]
[426441011,1782394481000,-1000000.0,0.0003732,120]
[426441010,1782394481000,-1140.96,0.0003732,120]
[426441009,1782394481000,-1000.0,0.0003732,120]
[426441007,1782394481000,-546.03016217,0.0003732,120]
[426441008,1782394481000,-1000.0,0.0003732,120]
[426441006,1782394481000,-500.0,0.0003732,120]
[426440996,1782394481000,-500.0,0.0003732,120]
[426441003,1782394481000,-500.0,0.0003732,120]
[426441004,1782394481000,-500.0,0.0003732,120]
[426441002,1782394481000,-500.0,0.0003732,120]
[426441000,1782394481000,-500.0,0.0003732,120]
[426441001,1782394481000,-500.0,0.0003732,120]
[426440998,1782394481000,-614.0,0.0003732,120]
[426441005,1782394481000,-364.83934687,0.0003732,120]
[426441013,1782394482000,28573.8,0.0003732,120]
[426441014,1782394482000,1801.63379804,0.0003732,120]
[426441012,1782394482000,12411.8,0.0003732,120]
[426441015,1782394483000,601.0,0.0003732,120]
[426441018,1782394502000,266.009516,0.0003732,120]
[426441017,1782394502000,4000.0,0.0003732,120]
[426441020,1782394563000,1001.855074,0.0003732,120]
[426441023,1782394596000,160.55616436,0.0003732,120]
[426441024,1782394597000,160.55616436,0.0003732,120]
[426441027,1782394597000,160.55616436,0.0003732,120]
[426441026,1782394597000,160.55616436,0.0003732,120]
[426441025,1782394597000,160.55616436,0.0003732,120]
[426441028,1782394598000,160.55616435,0.0003732,120]
[426441029,1782394598000,160.55616435,0.0003732,120]
[426441033,1782394598000,160.55616435,0.0003732,120]
[426441031,1782394598000,160.55616435,0.0003732,120]
[426441032,1782394598000,500.0,0.0003732,120]
[426441030,1782394598000,500.0,0.0003732,120]
[426441039,1782394599000,160.55616435,0.0003732,120]
[426441038,1782394599000,160.55616435,0.0003732,120]
[426441036,1782394599000,160.55616435,0.0003732,120]
[426441035,1782394599000,160.55616435,0.0003732,120]
[426441034,1782394599000,304.39672442,0.0003732,120]
[426441037,1782394599000,197.66780958,0.0003732,120]
[426441042,1782394600000,160.55616435,0.0003732,120]
[426441041,1782394600000,160.55616435,0.0003732,120]
[426441040,1782394600000,160.55616435,0.0003732,120]
[426441043,1782394601000,160.55616435,0.0003732,120]
[426441045,1782394601000,160.55616435,0.0003732,120]
[426441044,1782394601000,160.55616435,0.0003732,120]
[426441047,1782394602000,454.98404876,0.0003732,120]
[426441046,1782394602000,160.55616435,0.0003732,120]
[426441049,1782394604000,246.65815456,0.0003732,120]
[426441048,1782394604000,500.0,0.0003732,120]
[426441050,1782394607000,286.0,0.0003732,120]
[426441051,1782394609000,601.0,0.0003732,120]
[426441052,1782394611000,300.24,0.0003732,120]
[426441054,1782394613000,333.30952619,0.0003732,120]
[426441053,1782394613000,373.83629058,0.0003732,120]
[426441055,1782394616000,245.97891242,0.0003732,120]
[426441057,1782394619000,203.7380334,0.0003732,120]
[426441056,1782394619000,476.91466494,0.0003732,120]
[426441058,1782394621000,418.0,0.0003732,120]
[426441060,1782394622000,495.07089753,0.0003732,120]
[426441059,1782394622000,161.74240658,0.0003732,120]
[426441062,1782394623000,195.4,0.0003732,120]
[426441061,1782394623000,1858.072338,0.0003732,120]
[426441064,1782394624000,600.0,0.0003732,120]
[426441063,1782394624000,254.44444604,0.0003732,120]
[426441068,1782394626000,500.0,0.0003732,120]
[426441067,1782394626000,500.0,0.0003732,120]
[426441066,1782394626000,246.54,0.0003732,120]
[426441065,1782394626000,500.0,0.0003732,120]
[426441069,1782394627000,163.79362263,0.0003732,120]
[426441071,1782394627000,500.0,0.0003732,120]
[426441070,1782394627000,500.0,0.0003732,120]
[426441074,1782394628000,500.0,0.0003732,120]
[426441073,1782394628000,500.0,0.0003732,120]
[426441072,1782394628000,500.0,0.0003732,120]
[426441076,1782394629000,591.08234902,0.0003732,120]
[426441075,1782394629000,500.0,0.0003732,120]
[426441077,1782394632000,172.59672985,0.0003732,120]
[426441078,1782394635000,14544.0,0.0003732,120]
[426441080,1782394637000,638.0,0.0003732,120]
[426441079,1782394637000,364.0,0.0003732,120]
[426441081,1782394638000,603.8379,0.0003732,120]
[426441082,1782394643000,164.94832739,0.0003732,120]
[426441084,1782394646000,164.44302543,0.0003732,120]
[426441083,1782394646000,162.38,0.0003732,120]
[426441086,1782394648000,316.67920171,0.0003732,120]
[426441085,1782394648000,774.92483983,0.0003732,120]
[426441087,1782394651000,500.0,0.0003732,120]
[426441089,1782394652000,415.76441915,0.0003732,120]
[426441088,1782394652000,500.0,0.0003732,120]
[426441090,1782394653000,500.0,0.0003732,120]
[426441093,1782394653000,230.0,0.0003732,120]
[426441092,1782394653000,435.10292124,0.0003732,120]
[426441091,1782394653000,283.03917845,0.0003732,120]
[426441094,1782394654000,258.40292633,0.0003732,120]
[426441095,1782394666000,221.9259638,0.00037321,120]
[426441097,1782394667000,5966.0,0.00037321,120]
[426441096,1782394667000,285.06336203,0.00037321,120]
[426441099,1782394669000,151.0,0.00037321,120]
[426441100,1782394669000,155.09929951,0.00037321,120]
[426441098,1782394669000,151.79338993,0.00037321,120]
[426441101,1782394670000,180.31796266,0.00037321,120]
[426441103,1782394670000,278.1228194,0.00037321,120]
[426441102,1782394670000,151.79338993,0.00037321,120]
[426441104,1782394670000,155.09929951,0.00037321,120]
[426441105,1782394670000,156.32187448,0.00037321,120]
[426441106,1782394670000,523.64699947,0.00037321,120]
[426441109,1782394670000,151.79338993,0.00037321,120]
[426441108,1782394670000,155.09929951,0.00037321,120]
[426441110,1782394670000,180.31796266,0.00037321,120]
[426441107,1782394670000,158.90124261,0.00037321,120]
[426441119,1782394671000,180.31796266,0.00037321,120]
[426441111,1782394671000,151.0,0.00037321,120]
[426441112,1782394671000,151.79338993,0.00037321,120]
[426441113,1782394671000,155.09929951,0.00037321,120]
[426441114,1782394671000,500.0,0.00037321,120]
[426441116,1782394671000,158.90124261,0.00037321,120]
[426441115,1782394671000,151.0,0.00037321,120]
[426441117,1782394671000,520.0,0.00037321,120]
[426441118,1782394671000,151.0,0.00037321,120]
[426441120,1782394671000,158.12911508,0.00037321,120]
[426441125,1782394671000,155.09929951,0.00037321,120]
[426441122,1782394671000,500.0,0.00037321,120]
[426441123,1782394671000,151.0,0.00037321,120]
[426441124,1782394671000,151.0,0.00037321,120]
[426441126,1782394671000,151.0,0.00037321,120]
[426441127,1782394671000,500.0,0.00037321,120]
[426441128,1782394671000,151.79338993,0.00037321,120]
[426441129,1782394671000,186.80821251,0.00037321,120]
[426441130,1782394671000,500.0,0.00037321,120]
[426441131,1782394671000,151.0,0.00037321,120]
[426441132,1782394671000,151.0,0.00037321,120]
[426441121,1782394671000,151.0,0.00037321,120]
[426441144,1782394672000,518.5,0.00037321,120]
[426441141,1782394672000,152.14490257,0.00037321,120]
[426441142,1782394672000,500.0,0.00037321,120]
[426441138,1782394672000,151.99796879,0.00037321,120]
[426441139,1782394672000,157.78204607,0.00037321,120]
[426441133,1782394672000,251.60874614,0.00037321,120]
[426441137,1782394672000,151.0,0.00037321,120]
[426441135,1782394672000,156.587,0.00037321,120]
[426441136,1782394672000,180.31796266,0.00037321,120]
[426441134,1782394672000,318.00331833,0.00037321,120]
[426441143,1782394672000,155.09929951,0.00037321,120]
[426441140,1782394672000,152.0,0.00037321,120]
[426441145,1782394672000,151.79338993,0.00037321,120]
[426441160,1782394672000,500.0,0.00037321,120]
[426441146,1782394672000,272.66202502,0.00037321,120]
[426441147,1782394672000,151.0,0.00037321,120]
[426441159,1782394672000,151.0,0.00037321,120]
[426441157,1782394672000,180.31796269,0.00037321,120]
[426441158,1782394672000,500.0,0.00037321,120]
[426441154,1782394672000,6888.0,0.00037321,120]
[426441155,1782394672000,151.0,0.00037321,120]
[426441156,1782394672000,152.0,0.00037321,120]
[426441153,1782394672000,162.380719,0.00037321,120]
[426441151,1782394672000,318.00331833,0.00037321,120]
[426441149,1782394672000,158.12911508,0.00037321,120]
[426441150,1782394672000,156.587,0.00037321,120]
[426441148,1782394672000,500.0,0.00037321,120]
[426441152,1782394672000,151.0,0.00037321,120]
[426441168,1782394673000,318.00331833,0.00037321,120]
[426441172,1782394673000,7142.856,0.00037321,120]
[426441169,1782394673000,151.0,0.00037321,120]
[426441170,1782394673000,168.3888056,0.00037321,120]
[426441167,1782394673000,500.0,0.00037321,120]
[426441171,1782394673000,152.35779907,0.00037321,120]
[426441166,1782394673000,158.12911508,0.00037321,120]
[426441163,1782394673000,155.09929951,0.00037321,120]
[426441164,1782394673000,151.0,0.00037321,120]
[426441162,1782394673000,151.0,0.00037321,120]
[426441161,1782394673000,268.10027215,0.00037321,120]
[426441165,1782394673000,151.79338993,0.00037321,120]
[426441173,1782394673000,152.0,0.00037321,120]
[426441177,1782394673000,213.31357998,0.00037321,120]
[426441175,1782394673000,500.0,0.00037321,120]
[426441186,1782394673000,151.0,0.00037321,120]
[426441185,1782394673000,251.89055714,0.00037321,120]
[426441184,1782394673000,162.380719,0.00037321,120]
[426441182,1782394673000,500.0,0.00037321,120]
[426441183,1782394673000,318.00331833,0.00037321,120]
[426441174,1782394673000,151.0,0.00037321,120]
[426441179,1782394673000,151.0,0.00037321,120]
[426441180,1782394673000,151.79338993,0.00037321,120]
[426441176,1782394673000,194.69945512,0.00037321,120]
[426441178,1782394673000,155.09929951,0.00037321,120]
[426441187,1782394673000,7407.141672,0.00037321,120]
[426441181,1782394673000,158.1291151,0.00037321,120]
[426441197,1782394674000,7681.20591386,0.00037321,120]
[426441196,1782394674000,151.0,0.00037321,120]
[426441195,1782394674000,168.3888056,0.00037321,120]
[426441194,1782394674000,155.09929951,0.00037321,120]
[426441192,1782394674000,151.79338993,0.00037321,120]
[426441191,1782394674000,151.0,0.00037321,120]
[426441190,1782394674000,151.0,0.00037321,120]
[426441189,1782394674000,152.0,0.00037321,120]
[426441188,1782394674000,500.0,0.00037321,120]
[426441199,1782394674000,500.0,0.00037321,120]
[426441193,1782394674000,500.0,0.00037321,120]
[426441198,1782394674000,318.00331833,0.00037321,120]
[426441200,1782394674000,152.0,0.00037321,120]
[426441210,1782394674000,151.0,0.00037321,120]
[426441202,1782394674000,151.0,0.00037321,120]
[426441204,1782394674000,152.77573434,0.00037321,120]
[426441203,1782394674000,500.0,0.00037321,120]
[426441206,1782394674000,7965.41053267,0.00037321,120]
[426441205,1782394674000,151.0,0.00037321,120]
[426441208,1782394674000,152.0,0.00037321,120]
[426441207,1782394674000,318.00331833,0.00037321,120]
[426441209,1782394674000,500.0,0.00037321,120]
[426441211,1782394674000,151.0,0.00037321,120]
[426441201,1782394674000,151.0,0.00037321,120]
[426441212,1782394674000,500.0,0.00037321,120]
[426441220,1782394675000,500.0,0.00037321,120]
[426441218,1782394675000,151.0,0.00037321,120]
[426441219,1782394675000,151.0,0.00037321,120]
[426441217,1782394675000,151.0,0.00037321,120]
[426441222,1782394675000,500.0,0.00037321,120]
[426441216,1782394675000,152.0,0.00037321,120]
[426441213,1782394675000,6282.89757928,0.00037321,120]
[426441214,1782394675000,318.00331833,0.00037321,120]
[426441215,1782394675000,500.0,0.00037321,120]
[426441221,1782394675000,318.00331833,0.00037321,120]
[426441234,1782394675000,500.0,0.00037321,120]
[426441225,1782394675000,151.0,0.00037321,120]
[426441223,1782394675000,151.0,0.00037321,120]
[426441227,1782394675000,151.0,0.00037321,120]
[426441226,1782394675000,500.0,0.00037321,120]
[426441228,1782394675000,318.00331833,0.00037321,120]
[426441229,1782394675000,151.0,0.00037321,120]
[426441230,1782394675000,152.0,0.00037321,120]
[426441231,1782394675000,151.0,0.00037321,120]
[426441232,1782394675000,500.0,0.00037321,120]
[426441233,1782394675000,151.0,0.00037321,120]
[426441224,1782394675000,152.0,0.00037321,120]
[426441235,1782394676000,318.00331833,0.00037321,120]
[426441236,1782394676000,151.0,0.00037321,120]
[426441237,1782394676000,217.04855841,0.00037321,120]
[426441238,1782394676000,500.0,0.00037321,120]
[426441239,1782394676000,151.0,0.00037321,120]
[426441243,1782394676000,151.0,0.00037321,120]
[426441242,1782394676000,318.00331833,0.00037321,120]
[426441241,1782394676000,152.0,0.00037321,120]
[426441244,1782394676000,500.0,0.00037321,120]
[426441245,1782394676000,151.0,0.00037321,120]
[426441246,1782394676000,318.00331833,0.00037321,120]
[426441240,1782394676000,151.0,0.00037321,120]
[426441249,1782394677000,151.0,0.00037321,120]
[426441247,1782394677000,151.0,0.00037321,120]
[426441248,1782394677000,500.0,0.00037321,120]
[426441250,1782394677000,318.00331833,0.00037321,120]
[426441256,1782394677000,151.0,0.00037321,120]
[426441252,1782394677000,151.0,0.00037321,120]
[426441255,1782394677000,340.41133376,0.00037321,120]
[426441251,1782394677000,507.69448458,0.00037321,120]
[426441253,1782394677000,155.07952143,0.00037321,120]
[426441254,1782394677000,318.00331833,0.00037321,120]
[426441260,1782394678000,151.0,0.00037321,120]
[426441259,1782394678000,318.00331833,0.00037321,120]
[426441258,1782394678000,151.0,0.00037321,120]
[426441257,1782394678000,318.00331833,0.00037321,120]
[426441267,1782394679000,503.74787623,0.00037321,120]
[426441266,1782394679000,151.0,0.00037321,120]
[426441265,1782394679000,300.97,0.00037321,120]